{"text_format":"3","workbook":"xlsx","n_sheets":1,"sheets":["Table 1"],"read":"whole","date_system":"1900"}

{"sheet":"Table 1","index":0,"n_rows":45,"n_cols":5,"rows_kept":45,"merged":[[37,2,37,4],[39,2,39,4],[44,0,44,4]]}
["Buffalo Grove Clamp Order 2019"]
[]
["Description","Quantity","Unit Of Measure","Price per","Extended Cost"]
["Ford FS1 6\" x 10\" Stainless Steel Repair Clamp",5,"each",null,{"$f":"B4*D4","v":{"v":0,"d":"$ 0.00"}}]
["Ford FS1 6\" x 10\" Stainless Steel Repair Corp clamp",2,"each",null,{"$f":"B5*D5","v":{"v":0,"d":"$ 0.00"}}]
["Ford FS1 6\" x 12.5\" Stainless Steel Repair Clamp",5,"each",null,{"v":0,"d":"$ 0.00"}]
["Ford FS1 6\" x 12.5\" Stainless Steel Repair Corp Clamp",3,"each",null,{"v":0,"d":"$ 0.00"}]
["Ford FS1 6\" x 15\" Stainless Steel Repair Clamp",5,"each",null,{"v":0,"d":"$ 0.00"}]
["Ford FS1 6\" x 15\" Stainless Steel Repair Corp clamp",4,"each",null,{"v":0,"d":"$ 0.00"}]
["Ford FS1 6\" x 20\" Stainless Steel Repair Clamp",2,"each",null,{"v":0,"d":"$ 0.00"}]
["Ford FS1 6\" x 30\" Stainless Steel Repair Clamp",1,"each",null,{"v":0,"d":"$ 0.00"}]
["Ford FS1 8\" x 10\" Stainless Steel Repair Clamp",3,"each",null,{"v":0,"d":"$ 0.00"}]
["Ford FS1 8\" x 10\" Stainless Steel Repair Corp clamp",2,"each",null,{"v":0,"d":"$ 0.00"}]
["Ford FS1 8\" x 12.5\" Stainless Steel Repair Clamp",1,"each",null,{"v":0,"d":"$ 0.00"}]
["Ford FS1 8\" x 12.5\" Stainless Steel Repair Corp clamp",3,"each",null,{"v":0,"d":"$ 0.00"}]
["Ford FS1 8\" x 15\" Stainless Steel Repair Clamp",5,"each",null,{"v":0,"d":"$ 0.00"}]
["Ford FS1 8\" x 15\" Stainless Steel Repair Corp clamp",1,"each",null,{"v":0,"d":"$ 0.00"}]
["Ford FS1 8\" x 20\" Stainless Steel Repair Clamp",4,"each",null,{"v":0,"d":"$ 0.00"}]
["Ford FS1 8\" x 30\" Stainless Steel Repair Clamp",1,"each",null,{"v":0,"d":"$ 0.00"}]
["Ford FS1 10\" x 12\" Stainless Steel Repair Clamp",2,"each",null,{"v":0,"d":"$ 0.00"}]
["Ford FS1 10\" x 12\" Stainless Steel Repair Corp clamp",2,"each",null,{"v":0,"d":"$ 0.00"}]
["Ford FS1 10\" x 15\" Stainless Steel Repair Clamp",2,"each",null,{"v":0,"d":"$ 0.00"}]
["Ford FS1 10\" x 30\" Stainless Steel Repair Clamp",1,"each",null,{"v":0,"d":"$ 0.00"}]
["Ford FS1 12\" x 10\"  Stainless Steel Repair Clamp",2,"each",null,{"v":0,"d":"$ 0.00"}]
["Ford FS1 12\" x 10\"  Stainless Steel Repair Corp clamp",1,"each",null,{"v":0,"d":"$ 0.00"}]
["Ford FS1 12\" x 12\" Stainless Steel Repair Clamp",2,"each",null,{"v":0,"d":"$ 0.00"}]
["Ford FS1 12\" x 15\" Stainless Steel Repair Clamp",1,"each",null,{"v":0,"d":"$ 0.00"}]
["Ford FS1 12\" x 20\"  Stainless Steel Repair Clamp",2,"each",null,{"v":0,"d":"$ 0.00"}]
["Ford FS1 12\" x 24\" Stainless Steel Repair Clamp",1,"each",null,{"v":0,"d":"$ 0.00"}]
["1\"  K copper 50' roll",1,"each",null,{"v":0,"d":"$ 0.00"}]
["3/4\" K copper 50' roll",1,"each",null,{"v":0,"d":"$ 0.00"}]
["6\" hymax coupling (short)",2,"each",null,{"v":0,"d":"$ 0.00"}]
["8\" hymax coupling (short)",2,"each",null,{"v":0,"d":"$ 0.00"}]
[]
[null,{"$f":"SUM(B4:B34)","v":69},"Total Cost",null,{"$f":"SUM(E4:E34)","v":{"v":0,"d":"$ 0.00"}}]
["All Corp clamps shall have a 1\" tap"]
[]
[]
["Company Name",null,"Phone"]
[]
["Print Name",null,"E-mail"]
[]
["Date"]
[]
["THIS PAGE IS TO BE SUBMITTED ON OR BEFORE FRIDAY, MARCH 22 AT 10:00 AM "]